bitfinex/quotes_ETHUSD_20240823
["timestamp","ask_amount","ask_price","bid_price","bid_amount"]
[1724424715802,7.35885796,2645.3,2643.4,5.3813]
[1724424715803,3.78225,2644.0,2643.4,5.3813]
[1724424716164,3.78231,2643.9,2643.4,5.3813]
[1724424716350,3.78225,2644.0,2643.4,5.3813]
[1724424716351,3.78246,2643.8,2643.4,5.3813]
[1724424716553,3.78279,2643.6,2642.5,3.78419]
[1724424716776,3.78224,2644.0,2642.5,3.78424]
[1724424716984,3.78224,2644.0,2642.3,5.7153]
[1724424716985,3.783,2643.4,2642.6,0.378424]
[1724424717156,3.78281,2643.6,2642.6,3.78413]
[1724424717360,3.78281,2643.6,2642.7,3.78399]
[1724424717574,0.928224,2643.9,2642.5,3.78417]
[1724424717892,3.78237,2643.9,2643.0,5.7153]
[1724424718254,4.53265796,2644.3,2643.0,5.7153]
[1724424718255,3.78189,2644.2,2643.0,5.7153]
[1724424718454,3.78229,2643.9,2643.0,5.7153]
[1724424718681,1.53265796,2644.0,2643.0,5.7153]
[1724424718682,3.78303,2643.4,2643.0,5.7153]
[1724424718867,3.78249,2643.8,2642.3,5.323]
[1724424719069,3.78358,2643.0,2642.3,5.323]
[1724424719294,1.53265796,2643.6,2642.3,5.323]
[1724424719495,3.3792,2644.1,2642.3,5.323]
[1724424719496,1.53265796,2643.9,2642.3,5.323]
[1724424719726,1.53265796,2644.1,2643.5,3.78285]
[1724424719855,5.31412796,2644.5,2643.6,5.8019]
[1724424720203,3.44913823,2644.7,2643.9,3.78219]
[1724424720492,1.53265796,2644.8,2643.6,5.8019]
[1724424720701,5.31366796,2644.8,2643.7,3.78247]
[1724424720906,3.78101,2644.8,2643.7,3.78247]
[1724424721086,1.14942583,2644.9,2644.1,3.78196]
[1724424721257,2.22862583,2645.0,2643.6,5.8019]
[1724424721599,2.22862583,2645.0,2642.6,5.4678]
[1724424721600,5.5181,2644.2,2642.6,5.4678]
[1724424721826,3.78404,2642.7,2641.5,5.4678]
[1724424722016,3.78431,2642.5,2641.6,3.78546]
[1724424722163,3.78404,2642.7,2641.6,3.78546]
[1724424722359,3.78506,2642.0,2641.5,5.4678]
[1724424722686,2.29568027,2642.9,2640.8,5.6531]
[1724424722687,1.14942583,2642.3,2640.8,5.6531]
[1724424722887,3.78568,2641.6,2640.8,5.6531]
[1724424723201,3.78544,2641.7,2640.8,5.6531]
[1724424723362,3.78586,2641.5,2640.8,5.6531]
[1724424723701,3.78586,2641.5,2640.0,5.6531]
[1724424723702,3.78617,2641.2,2640.0,5.6531]
[1724424724007,3.78633,2641.1,2640.0,5.6531]
[1724424724173,3.78647,2641.0,2640.0,5.6531]
[1724424724517,1.53265796,2641.6,2641.1,5.6731]
[1724424724677,1.14942583,2642.3,2641.1,5.6731]
[1724424724872,3.78519,2641.9,2641.1,5.6731]
[1724424725212,1.14942583,2642.1,2641.1,5.6731]
[1724424725500,4.59502103,2642.6,2641.2,0.07570351]
[1724424725659,2.29552469,2643.1,2641.7,5.3545]
[1724424725660,2.68208379,2642.8,2641.7,5.3545]
[1724424725858,3.78417,2642.6,2641.7,5.3545]
[1724424726081,4.93333583,2642.8,2641.8,3.78525]
[1724424726284,4.93333583,2642.8,2641.7,6.268505]
[1724424726285,1.14942583,2642.8,2641.7,6.268505]
[1724424726484,1.14942583,2643.0,2642.1,3.78484]
[1724424726695,5.31566796,2643.4,2642.3,3.78457]
[1724424726957,3.78332,2643.2,2642.2,5.3682]
[1724424727164,1.14942583,2643.6,2642.2,5.3682]
[1724424727165,3.78351,2643.1,2642.2,5.3682]
[1724424727474,3.7836,2643.0,2642.2,5.3682]
[1724424727672,3.78344,2643.1,2642.2,5.3682]
[1724424727877,2.68208379,2643.4,2642.2,5.3682]
[1724424728258,3.78473,2642.2,2641.6,5.5448]
[1724424728513,1.14942583,2642.6,2641.6,5.5448]
[1724424728686,0.55,2642.5,2641.6,5.5448]
[1724424728881,1.14942583,2642.7,2641.6,9.33033]
[1724424729082,5.69681724,2642.8,2641.8,3.78528]
[1724424729330,3.06236307,2642.9,2641.6,5.5448]
[1724424729539,3.78431,2642.5,2641.6,5.5448]
[1724424729828,1.14942583,2642.5,2641.6,5.5448]
[1724424730035,2.29616005,2643.0,2639.8,5.87378826]
[1724424730036,1.14942583,2642.6,2641.5,6.779]
[1724424730242,1.14942583,2643.4,2642.7,3.78399]
[1724424730512,1.91346671,2643.7,2642.9,3.7836]
[1724424730513,1.53265796,2643.7,2642.9,3.7836]
[1724424730696,4.93171583,2643.9,2643.0,0.07565744]
[1724424730909,1.14942583,2643.6,2642.4,6.779]
[1724424731084,1.14942583,2643.6,2642.5,0.07566803]
[1724424731288,3.78279,2643.6,2642.5,3.78425]
[1724424731499,3.78279,2643.6,2642.4,6.779]
[1724424731500,3.78303,2643.4,2642.4,6.779]
[1724424731701,3.78287,2643.5,2642.5,3.78426]
[1724424731951,1.14942583,2643.9,2642.7,6.9515]
[1724424732105,1.14942583,2644.0,2642.7,10.73547]
[1724424732307,1.53265796,2644.2,2642.8,0.07565179]
[1724424732308,1.14942583,2644.1,2642.8,0.07565179]
[1724424732479,1.14942583,2644.1,2643.1,3.78332]
[1724424732480,3.78217,2644.0,2643.1,3.78332]
[1724424732675,3.78218,2644.0,2643.0,6.9515]
[1724424732875,0.378218,2643.9,2643.0,6.9515]
[1724424733082,0.378218,2643.9,2642.2,3.78459]
[1724424733083,3.78348,2643.1,2642.4,6.9515]
[1724424733441,3.7832,2643.3,2642.4,6.9515]
[1724424733581,3.78319,2643.3,2642.4,6.9515]
[1724424733953,3.78304,2643.4,2642.4,6.9515]
[1724424733954,1.14942583,2643.4,2642.4,6.9515]
[1724424734079,0.55,2643.3,2642.4,6.9515]
[1724424734280,1.14942583,2643.1,2641.9,3.78514]
[1724424734479,0.55,2643.3,2641.9,3.78514]
[1724424734480,1.14942583,2643.2,2641.9,0.378514]
[1724424734790,1.69942583,2643.3,2642.1,0.005]
[1724424734988,0.55,2643.3,2642.1,0.005]
[1724424735191,1.14942583,2643.5,2642.6,3.78415]
[1724424735389,1.14942583,2643.9,2642.9,6.7476]
[1724424735587,10.05243555,2644.9,2643.0,3.85916879]
[1724424735588,1.14942583,2644.1,2643.0,3.85916879]
[1724424735799,1.14942583,2644.1,2643.0,1.06067688]
[1724424735987,1.14942583,2644.3,2643.6,3.78259]
[1724424736189,1.14942583,2644.5,2643.8,7.2218]
[1724424736389,3.44769885,2644.7,2643.8,7.2218]
[1724424736390,1.53265796,2644.7,2644.0,3.78211]
[1724424736629,2.68105725,2645.4,2644.1,0.07561573]
[1724424736630,1.53265796,2644.8,2644.1,0.07561573]
[1724424736855,1.14942583,2645.4,2643.7,6.8713]
[1724424737125,1.14942583,2645.4,2643.6,8.59564014]
[1724424737126,1.14942583,2645.5,2643.9,6.8713]
[1724424737303,1.14942583,2645.6,2644.0,6.8713]
[1724424737491,1.91504089,2645.9,2644.2,6.8575]
[1724424737806,1.14942583,2646.0,2644.2,6.8575]
[1724424738128,1.14942583,2646.0,2644.4,6.8575]
[1724424738433,1.56599039,2646.4,2644.5,8.35385]
[1724424738596,1.91185796,2646.2,2644.5,8.35385]
[1724424738787,0.41656456,2646.1,2644.5,8.35385]
[1724424738985,1.14942583,2646.0,2644.5,7.3681]
[1724424739181,1.91383143,2646.4,2644.5,7.3681]
[1724424739182,1.14942583,2646.3,2644.5,7.3681]
[1724424739472,1.14942583,2646.6,2644.5,7.3681]
[1724424739735,0.41656456,2646.5,2644.5,7.3681]
[1724424739914,1.56599039,2646.5,2644.5,7.3681]
[1724424740116,1.56599039,2646.5,2644.7,6.7048]
[1724424740462,0.3792,2646.4,2644.7,6.7048]
[1724424740587,1.94519039,2646.4,2644.7,6.7048]
[1724424740800,0.3792,2646.3,2644.7,6.7048]
[1724424741085,1.14942583,2646.2,2644.7,6.7048]
[1724424741319,3.0,2646.3,2644.8,0.07560167]
[1724424741499,3.0,2646.6,2644.7,6.7048]
[1724424741824,1.14942583,2646.6,2644.7,6.7048]
[1724424742048,3.0,2646.7,2644.7,6.7048]
[1724424742224,1.14942583,2646.8,2644.7,6.7048]
[1724424742225,4.14942583,2646.8,2644.7,6.7048]
[1724424742387,1.23505838,2646.7,2644.9,7.1454]
[1724424742583,1.14942583,2647.1,2645.1,7.1094]
[1724424742830,1.14942583,2647.1,2645.2,7.1094]
[1724424742831,0.3792,2647.1,2645.2,7.1094]
[1724424743048,0.3792,2646.9,2645.2,7.1094]
[1724424743264,0.44767464,2647.0,2645.3,0.07558145]
[1724424743547,8.53445796,2647.4,2645.4,6.86297708]
[1724424743548,1.14942583,2647.4,2645.4,6.86297708]
[1724424743844,0.82687464,2647.4,2645.5,0.68629771]
[1724424744045,0.44767464,2647.3,2645.5,0.68629771]
[1724424744349,0.44767464,2647.3,2645.6,6.7874]
[1724424744646,0.3792,2647.4,2645.8,6.7501]
[1724424744842,7.5724,2647.6,2645.8,6.7501]
[1724424745141,7.5724,2647.6,2645.3,6.7501]
[1724424745142,0.3792,2647.2,2645.3,6.7501]
[1724424745341,0.3792,2647.0,2645.3,6.7501]
[1724424745538,0.44767464,2646.9,2645.3,6.7501]
[1724424745846,0.55,2646.8,2645.3,6.7501]
[1724424746214,0.55,2646.9,2645.3,6.7501]
[1724424746402,0.55,2646.9,2645.4,0.67501]
[1724424746603,0.99767464,2646.9,2645.4,0.67501]
[1724424746812,0.3792,2647.0,2645.4,0.67501]
[1724424747028,5.1788821,2647.5,2645.4,0.67501]
[1724424747403,5.1788821,2647.5,2645.3,6.7501]
[1724424747404,0.3792,2647.1,2645.3,6.7501]
[1724424747601,0.3792,2646.9,2645.3,6.7501]
[1724424747809,0.7,2646.6,2643.9,6.7116]
[1724424748007,0.3792,2646.1,2643.9,6.7116]
[1724424748281,0.3792,2645.9,2643.9,6.7116]
[1724424748545,5.97484014,2645.7,2644.0,0.67116]
[1724424748905,3.55,2645.6,2644.0,0.67116]
[1724424749310,0.55,2645.6,2644.1,6.7163]
[1724424751100,3.55,2645.6,2644.1,6.7163]
[1724424751392,5.59564014,2645.2,2644.1,6.7163]
[1724424751601,5.59564014,2645.2,2643.6,7.1613]
[1724424751602,4.93643865,2645.1,2643.6,7.1613]
[1724424751892,0.3792,2645.0,2643.6,7.1613]
[1724424752193,0.9292,2644.9,2643.6,7.1613]
[1724424752492,4.10956401,2645.1,2643.6,7.1613]
[1724424752493,0.9292,2644.8,2643.6,7.1613]
[1724424752653,0.7,2645.0,2643.6,7.1613]
[1724424752654,0.3792,2645.0,2643.6,7.1613]
[1724424752854,0.3792,2644.8,2643.6,7.1613]
[1724424753079,0.55,2644.7,2643.6,7.1613]
[1724424753247,0.55,2644.9,2643.7,0.07563975]
[1724424753441,3.0,2645.6,2643.7,0.07562774]
[1724424753690,3.0,2645.6,2643.6,7.1613]
[1724424753895,1.53613401,2645.5,2643.8,7.0822]
[1724424754075,5.97484014,2645.7,2643.8,7.0822]
[1724424754587,5.59564014,2645.2,2643.8,7.0822]
[1724424754704,0.3792,2645.1,2642.2,7.0822]
[1724424755079,5.59564014,2644.2,2642.2,7.0822]
[1724424755381,0.9292,2644.1,2642.2,7.0822]
[1724424755573,0.65248401,2644.0,2642.3,0.70872]
[1724424755903,0.3792,2643.8,2642.3,0.70872]
[1724424756434,0.55,2643.7,2642.4,0.07567337]
[1724424756612,0.55,2643.7,2642.5,7.2799]
[1724424756956,0.55,2643.9,2642.5,7.2799]
[1724424757146,0.9292,2644.0,2642.5,7.2799]
[1724424757846,1.14942583,2643.9,2642.5,7.2799]
[1724424758045,2.78265796,2644.0,2642.1,0.005]
[1724424758046,6.74506597,2643.7,2642.1,0.005]
[1724424758260,1.14942583,2643.6,2642.1,0.005]
[1724424758480,5.59564014,2643.2,2642.1,0.005]
[1724424758659,6.74506597,2643.2,2642.1,0.005]
[1724424758959,4.69942583,2643.1,2642.1,0.005]
[1724424759135,1.62322975,2643.0,2642.1,0.005]
[1724424759340,0.55,2642.9,2642.1,0.005]
[1724424760059,0.3792,2642.8,2642.1,0.005]
[1724424760218,1.52862583,2642.8,2642.1,0.005]
[1724424760554,0.9292,2642.7,2642.1,0.005]
[1724424760760,0.55,2642.7,2642.1,0.005]
[1724424760959,0.59372315,2643.0,2642.1,0.005]
[1724424761157,0.39320838,2643.8,2642.2,7.8227]
[1724424761319,0.19258663,2643.7,2642.3,0.78277]
[1724424761527,1.90468186,2644.4,2642.3,0.78277]
[1724424761528,0.59361,2643.9,2642.4,7.89836276]
[1724424761733,0.59361,2643.9,2642.4,7.8227]
[1724424762261,0.59361,2643.9,2642.6,7.087]
[1724424762558,1.14942583,2645.0,2642.6,7.087]
[1724424762761,0.59338649,2644.6,2642.6,7.087]
[1724424763057,7.7626021,2644.6,2642.6,7.087]
[1724424763357,7.33845246,2644.6,2642.6,7.087]
[1724424763759,6.18902663,2644.6,2642.6,7.087]
[1724424763918,7.33845246,2644.6,2642.6,7.087]
[1724424764125,0.59338649,2644.6,2642.8,7.2413]
[1724424764360,0.59338649,2644.6,2643.0,7.249]
[1724424764748,0.3792,2644.5,2643.0,7.249]
[1724424764931,0.3792,2644.3,2643.0,7.249]
[1724424765141,3.48543343,2644.3,2642.4,7.1191]
[1724424765337,0.80334964,2644.2,2642.4,7.1191]
[1724424765660,0.19527755,2644.1,2642.4,7.909287]
[1724424765861,0.3792,2644.2,2642.4,7.909287]
[1724424766067,1.53265796,2644.5,2642.4,7.909287]
[1724424766068,1.53265796,2644.5,2642.5,7.19475001]
[1724424766269,0.59338649,2644.6,2642.6,7.22844229]
[1724424766436,0.59338649,2644.6,2642.7,7.1528]
[1724424766638,0.59338649,2644.6,2642.9,7.1528]
[1724424766945,0.59338649,2644.6,2643.0,7.87564423]
[1724424767467,3.78144,2644.5,2643.5,3.78276]
[1724424767649,3.78144,2644.5,2643.6,0.07563548]
[1724424767863,3.78101,2644.8,2643.9,3.78218]
[1724424768172,3.78101,2644.8,2643.8,11.2123]
[1724424768323,7.56195,2644.9,2643.9,5.281749]
[1724424768525,0.5932728,2645.0,2644.1,7.1347]
[1724424768725,0.5932728,2645.0,2644.3,3.78158]
[1724424769031,0.5932728,2645.0,2644.1,10.91666]
[1724424769032,0.5932728,2645.0,2644.1,10.91661]
[1724424769232,0.5932728,2645.0,2644.1,7.1347]
[1724424769433,0.5932728,2645.0,2644.3,3.78157]
[1724424769648,0.5932728,2645.0,2644.2,0.71347]
[1724424769823,3.781,2644.8,2644.2,0.71347]
[1724424770021,3.78086,2644.9,2644.1,7.1347]
[1724424770219,3.78119,2644.7,2644.1,7.1347]
[1724424770420,3.78105,2644.8,2644.1,7.1347]
[1724424771230,0.5932728,2645.0,2644.1,7.1347]
[1724424771231,3.78146,2644.5,2644.1,7.1347]
[1724424771478,3.7812,2644.7,2644.1,7.1347]
[1724424771729,3.78182,2644.3,2644.1,7.1347]
[1724424771956,3.7821,2644.1,2643.6,7.3165]
[1724424772169,3.782,2644.1,2643.6,7.3165]
[1724424772320,3.78179,2644.3,2643.6,8.04815]
[1724424772523,0.55,2644.9,2643.6,8.04815]
[1724424772524,3.78213,2644.1,2643.6,7.3165]
[1724424772724,3.7831,2643.4,2642.6,7.5717]
[1724424772962,3.78307,2643.4,2642.6,7.5717]
[1724424773166,7.56617,2643.4,2642.6,7.5717]
[1724424773375,3.7835,2643.1,2642.6,7.5717]
[1724424773580,3.7835,2643.1,2642.1,7.3433]
[1724424773581,3.78411,2642.7,2642.1,7.3433]
[1724424773746,3.78472,2642.2,2642.1,0.005]
[1724424775469,3.78433,2642.5,2642.1,0.005]
[1724424775686,3.78472,2642.2,2642.1,0.005]
[1724424775895,8.11944,2642.2,2642.1,0.005]
[1724424776353,8.931384,2642.2,2642.1,0.005]
[1724424776755,12.716104,2642.2,2642.1,1e-05]
[1724424777012,15.716104,2642.2,2642.1,1e-05]
[1724424777343,11.11944,2642.2,2642.1,1e-05]
[1724424778159,8.11944,2642.2,2642.1,1e-05]
[1724424778666,11.90416,2642.2,2642.1,1e-05]
[1724424778871,8.11944,2642.2,2642.1,1e-05]
[1724424779245,4.33472,2642.2,2642.1,1e-05]
[1724424779448,8.11944,2642.2,2642.1,1e-05]
[1724424780243,3.78472,2642.2,2642.1,1e-05]
[1724424780800,0.43335,2643.1,2642.1,1e-05]
[1724424781170,7.56944,2642.2,2642.1,1e-05]
[1724424781374,11.35416,2642.2,2642.1,1e-05]
[1724424781560,7.56944,2642.2,2642.1,1e-05]
[1724424781766,11.35416,2642.2,2642.1,1e-05]
[1724424782101,10.56944,2642.2,2642.1,1e-05]
[1724424782260,12.176384,2642.2,2642.1,1e-05]
[1724424782467,15.961104,2642.2,2642.1,1e-05]
[1724424782692,12.176384,2642.2,2642.1,1e-05]
[1724424782916,11.11944,2642.2,2642.1,1e-05]
[1724424783114,15.68888,2642.2,2642.1,1e-05]
[1724424783403,14.90416,2642.2,2642.1,1e-05]
[1724424783729,8.11944,2642.2,2642.1,1e-05]
[1724424783861,3.78435,2642.5,2642.1,1e-05]
[1724424784273,3.78472,2642.2,2642.1,1e-05]
[1724424784597,3.78399,2642.8,2642.1,1e-05]
[1724424784902,3.78391,2642.8,2642.1,0.0757008]
[1724424785102,10.90683597,2643.7,2642.1,1e-05]
[1724424785103,3.78301,2643.4,2642.1,1e-05]
[1724424785403,3.78438,2642.5,2642.1,1e-05]
[1724424785836,3.78378,2642.9,2642.1,1e-05]
[1724424785969,3.78409,2642.7,2642.1,1e-05]
[1724424786328,3.78336,2643.2,2642.1,3.86052309]
[1724424786329,3.78335,2643.2,2642.1,3.86052309]
[1724424786481,3.78275,2643.6,2642.5,3.78419]
[1724424786691,8.49202583,2644.4,2642.8,7.3803]
[1724424786692,3.78316,2643.3,2642.8,7.3803]
[1724424786878,3.78289,2643.5,2642.8,7.3803]
[1724424787206,0.48164964,2644.3,2642.9,0.07566047]
[1724424787207,7.56473,2643.9,2642.9,0.07566047]
[1724424787404,0.3792,2644.6,2643.1,3.78342]
[1724424787405,0.48164964,2644.6,2643.1,3.78342]
[1724424787605,0.48164964,2644.6,2643.2,8.092142]
[1724424787905,0.5932728,2645.0,2644.1,7.7138]
[1724424788214,1.14942583,2645.9,2644.2,0.0756232]
[1724424788418,1.91185796,2646.0,2644.1,7.7138]
[1724424788419,3.78086,2644.9,2644.1,7.7138]
[1724424788791,3.78102,2644.8,2644.1,7.7138]
[1724424788973,3.7816,2644.4,2644.1,7.7138]
[1724424789185,3.78186,2644.2,2643.3,7.6937]
[1724424789475,3.78215,2644.0,2643.3,7.6937]
[1724424789915,3.78189,2644.2,2643.3,7.6937]
[1724424790124,0.7,2645.6,2643.3,7.6937]
[1724424790125,3.78133,2644.6,2643.3,7.6937]
[1724424790425,3.78133,2644.6,2643.2,0.378342]
[1724424790426,0.59305098,2645.4,2644.0,7.4991]
[1724424790618,3.78087,2644.9,2644.0,7.4991]
[1724424790804,3.78126,2644.7,2644.0,7.4991]
[1724424791118,3.7817,2644.4,2644.0,7.4991]
[1724424791320,0.59305098,2645.4,2643.2,0.378342]
[1724424791321,3.78057,2645.1,2643.3,7.5398]
[1724424791615,3.78207,2644.1,2643.3,7.5398]
[1724424791786,3.78138,2644.6,2643.3,7.5398]
[1724424791973,3.783,2643.5,2643.3,7.5398]
[1724424792233,3.78316,2643.3,2642.3,7.478]
[1724424792388,0.48164964,2644.4,2642.4,1.16486523]
[1724424792389,3.78291,2643.5,2642.4,1.16486523]
[1724424792575,3.78249,2643.8,2642.4,1.16486523]
[1724424792771,3.0,2644.2,2643.0,3.78356]
[1724424792976,0.55,2644.1,2643.1,3.78342]
[1724424793174,7.93115583,2644.3,2643.0,7.478]
[1724424793175,1.14942583,2644.3,2643.0,7.478]
[1724424793379,4.63107547,2644.6,2643.3,3.78312]
[1724424793579,4.63107547,2644.6,2643.2,7.478]
[1724424793580,3.78189,2644.2,2643.2,7.478]
[1724424793791,6.78134,2644.6,2643.4,3.783]
[1724424793990,3.78178,2644.3,2643.2,7.478]
[1724424794189,3.78102,2644.8,2643.1,7.1404]
[1724424794395,0.59305098,2645.4,2644.0,7.1404]
[1724424794396,1.14942583,2645.3,2644.0,7.1404]
[1724424794637,3.78144,2644.5,2644.0,7.1404]
[1724424794860,3.78173,2644.3,2644.0,7.1404]
[1724424795152,0.48164964,2644.7,2644.0,7.1404]
[1724424795278,1.53265796,2645.0,2643.7,7.1385223]
[1724424795279,1.14942583,2644.8,2643.7,7.1385223]
[1724424795638,3.78239,2643.9,2643.7,7.1385223]
[1724424795780,3.78243,2643.8,2643.2,1.167168]
[1724424796106,3.78243,2643.8,2641.1,0.1]
[1724424796107,3.7832,2643.3,2641.3,3.78594]
[1724424796308,3.48164964,2644.2,2642.8,3.78384]
[1724424796309,3.78243,2643.8,2642.8,3.78384]
[1724424796483,3.78186,2644.3,2643.3,3.78312]
[1724424796827,4.93112583,2644.4,2642.7,3.78386]
[1724424796828,3.78224,2644.0,2642.7,3.78386]
[1724424797026,3.78225,2644.0,2643.0,3.78343]
[1724424797183,3.78158,2644.4,2643.3,3.78313]
[1724424797522,3.78172,2644.3,2643.1,4.161713]
[1724424797732,3.78167,2644.4,2643.1,0.378343]
[1724424797898,4.04923838,2644.8,2643.7,3.78245]
[1724424798090,3.78128,2644.7,2643.5,3.78282]
[1724424798284,3.78128,2644.7,2643.7,7.0694]
[1724424798585,4.92977583,2645.3,2643.6,4.160992]
[1724424798586,1.14942583,2645.4,2643.8,10.85181]
[1724424798797,3.78077,2645.0,2643.9,3.78226]
[1724424799003,3.78109,2644.8,2643.9,3.78226]
[1724424799327,1.14942583,2645.4,2643.8,10.85181]
[1724424799328,3.78129,2644.6,2643.8,7.0694]
[1724424799577,3.78167,2644.4,2643.8,7.0694]
[1724424799825,3.7816,2644.4,2643.8,7.0694]
[1724424800028,0.756293,2644.4,2643.8,7.0694]
[1724424800212,3.78218,2644.0,2643.8,7.0694]
[1724424800418,0.756293,2644.4,2643.0,7.1233]
[1724424800419,3.78251,2643.8,2643.0,7.1233]
[1724424800737,3.78333,2643.2,2643.0,7.1233]
[1724424800882,3.7832,2643.3,2643.0,7.1233]
[1724424801090,1.63107547,2643.9,2643.0,7.1233]
[1724424801091,3.78232,2643.9,2643.0,7.1233]
[1724424801283,3.0,2644.0,2643.0,7.1233]
[1724424801527,3.78269,2643.7,2643.0,7.1233]
[1724424801916,3.78214,2644.0,2643.1,3.85895003]
[1724424802123,3.78215,2644.0,2643.0,3.78356]
[1724424802286,3.78273,2643.6,2643.1,7.2445]
[1724424802612,3.78266,2643.7,2643.1,7.2445]
[1724424803404,3.78267,2643.7,2643.1,7.2445]
[1724424803744,3.78215,2644.0,2643.1,11.75238]
[1724424803948,1.14942583,2644.2,2643.1,7.2445]
[1724424804106,3.78381,2642.9,2642.2,7.1825]
[1724424804564,3.78383,2642.9,2642.2,7.1825]
[1724424804755,4.14942583,2643.5,2642.2,7.1825]
[1724424805058,3.78458,2642.3,2642.2,7.1825]
[1724424805350,1.14942583,2643.0,2642.2,7.1825]
[1724424805351,3.78441,2642.5,2642.2,7.1825]
[1724424805507,3.78403,2642.7,2642.2,7.1825]
[1724424805709,5.31603796,2643.2,2642.2,7.1825]
[1724424805710,3.78386,2642.8,2642.2,7.900751]
[1724424806031,1.14942583,2643.2,2642.1,1e-05]
[1724424806237,7.56944,2642.2,2642.1,1e-05]
[1724424806607,11.35416,2642.2,2642.1,1e-05]
[1724424806807,12.65209796,2642.2,2642.1,1e-05]
[1724424807044,4.92929525,2642.2,2642.1,1e-05]
[1724424807258,3.78472,2642.2,2642.1,1e-05]
[1724424807730,3.7846,2642.3,2642.1,1e-05]
[1724424807957,4.53265796,2642.7,2642.1,1e-05]
[1724424807958,1.14457525,2642.7,2642.1,1e-05]
[1724424808292,3.78372,2642.9,2642.1,1.11723]
[1724424808419,1.14457525,2643.3,2642.1,1.11723]
[1724424808621,3.78388,2642.8,2642.1,1.11723]
[1724424808873,3.78375,2642.9,2642.1,1.11723]
[1724424809020,3.78355,2643.1,2642.1,1e-05]
[1724424809021,3.78472,2642.2,2642.1,1e-05]
[1724424809220,1.14457525,2643.1,2642.1,1e-05]
[1724424809221,7.56929,2642.3,2642.1,1e-05]
[1724424809531,3.78458,2642.3,2642.1,1e-05]
[1724424809739,3.78407,2642.7,2642.1,1e-05]
[1724424810052,1.90641356,2643.3,2642.1,1e-05]
[1724424810053,3.78387,2642.8,2642.1,1e-05]
[1724424810252,3.78347,2643.1,2642.1,1.117222]
[1724424810589,3.78356,2643.1,2642.1,1e-05]
[1724424810724,3.78454,2642.4,2642.1,1e-05]
[1724424810936,7.56909,2642.4,2642.1,1e-05]
[1724424811251,3.78374,2642.9,2642.1,1e-05]
[1724424811252,7.56944,2642.2,2642.1,1e-05]
[1724424811477,8.326384,2642.2,2642.1,1e-05]
[1724424811631,12.111104,2642.2,2642.1,1e-05]
[1724424811835,15.661104,2642.2,2642.1,1e-05]
[1724424812031,3.78472,2642.2,2642.1,1e-05]
[1724424812274,1.14457525,2642.7,2642.1,1e-05]
[1724424812473,7.56944,2642.2,2642.1,1e-05]
[1724424812797,3.78469,2642.3,2642.1,1e-05]
[1724424812990,3.78449,2642.4,2642.1,1e-05]
[1724424813205,7.56846,2642.6,2642.1,1e-05]
[1724424813471,3.78458,2642.3,2642.2,7.3373]
[1724424813787,3.78355,2643.1,2642.1,1e-05]
[1724424813788,3.78472,2642.2,2642.1,1e-05]
[1724424813983,7.56944,2642.2,2642.1,1e-05]
[1724424814191,3.78438,2642.5,2642.1,1e-05]
[1724424814332,3.78458,2642.3,2642.1,1e-05]
[1724424814534,7.56944,2642.2,2642.1,1e-05]
[1724424815376,3.78459,2642.3,2642.1,1e-05]
[1724424815677,3.78448,2642.4,2642.1,1e-05]
[1724424816247,3.78421,2642.6,2642.1,1e-05]
[1724424816588,1.14457525,2642.9,2642.1,1e-05]
[1724424816882,3.78436,2642.5,2642.1,1e-05]
[1724424817053,4.92788525,2643.2,2642.2,7.1009]
[1724424817249,1.14457525,2643.5,2642.2,7.1009]
[1724424817466,3.7841,2642.7,2642.2,7.1009]
[1724424817852,3.78458,2642.3,2642.2,7.1009]
[1724424818195,3.78404,2642.7,2642.2,7.1009]
[1724424818340,3.78454,2642.4,2642.2,7.1009]
[1724424818540,3.78472,2642.2,2642.1,1e-05]
[1724424818739,0.378404,2642.7,2642.1,1e-05]
[1724424818976,7.56944,2642.2,2642.1,1e-05]
[1724424819547,3.78472,2642.2,2642.1,1e-05]
[1724424819945,7.92846525,2642.8,2642.1,1e-05]
[1724424819946,3.78455,2642.4,2642.1,1e-05]
[1724424820147,1.14457525,2643.0,2642.1,1e-05]
[1724424820371,3.78394,2642.8,2642.1,1e-05]
[1724424821206,3.78394,2642.8,2642.2,7.2799]
[1724424821207,3.78389,2642.8,2642.2,7.2799]
[1724424821489,1.14457525,2643.6,2642.7,7.2799]
[1724424821647,1.53265796,2643.9,2643.2,3.78327]
[1724424821849,3.78206,2644.1,2643.3,7.2799]
[1724424822395,4.92635525,2644.3,2643.3,7.2799]
[1724424822544,4.92635525,2644.3,2643.4,3.78298]
[1724424822545,3.78178,2644.3,2643.4,3.78298]
[1724424822745,1.14457525,2644.9,2643.6,7.15]
[1724424822946,4.20184,2645.0,2644.1,7.15]
[1724424823156,4.20184,2645.0,2644.3,3.78161]
[1724424823362,3.78029,2645.3,2644.3,3.78161]
[1724424823363,3.78044,2645.2,2644.3,3.78161]
[1724424823647,3.78069,2645.1,2644.1,8.2432]
[1724424824247,1.14457525,2645.4,2644.3,3.7817]
[1724424824248,3.78015,2645.4,2644.3,3.7817]
[1724424824490,3.78015,2645.4,2644.6,7.6808]
[1724424824491,3.78018,2645.4,2644.6,7.6808]
[1724424824722,0.378018,2645.4,2644.6,7.6808]
[1724424824856,0.378018,2645.4,2643.5,3.0]
[1724424824857,3.78068,2645.1,2643.9,7.5878]
[1724424825051,3.78129,2644.6,2643.9,7.5878]
[1724424825357,3.78119,2644.7,2643.9,7.5878]
[1724424825563,3.78105,2644.8,2643.9,7.5878]
[1724424825758,3.78073,2645.0,2644.0,3.85764515]
[1724424825986,0.55,2644.9,2644.2,7.6509]